Cogmind - Beta 13 @@@ ROGUE MODE // 2024.05.12 @ 00:18:13 Player: BrainTooSmol Result: Self-destructed Performance ------------- Evolutions (5) 2500 Regions Visited (9) 1800 Robots Destroyed (68) 340 Value Destroyed (1158) 1158 Prototype IDs (7) 140 Alien Tech Used (0) 0 Bonus (247) 247 TOTAL SCORE: 6185 Bonus ------- High Alert Combat Kills 11 Follower Combat Kills 236 Cogmind --------- Core Integrity 982/1000 Matter 140/300 Energy 258/260 System Corruption 0% Temperature Cool (22) Movement Flying (101) Ox1 Location -5/Factory Parts ------- > --- POWER (3) -------- Micro Nuclear Core Micro Nuclear Core Light Fission Core > --- PROPULSION (4) --- Improved Flight Unit Cooled VTOL Module > --- UTILITY (8) ------ Advanced Weight Redist. System Advanced Signal Interpreter ECM Suite Advanced ECM Suite Hacking Suite Hacking Suite Hacking Suite System Shield > --- WEAPON (2) ------- Scythe > --- INVENTORY (5) ---- Nuclear Pulse Thruster Structural Scanner Triangulator System Shield Heavy Ion Cannon Peak State ------------ > --- POWER ------------ Micro Nuclear Core Light Fission Core Cold Fusion Reactor > --- PROPULSION ------- Improved Flight Unit Improved Flight Unit Cooled VTOL Module Cooled VTOL Module > --- UTILITY ---------- Advanced Weight Redist. System Advanced Signal Interpreter ECM Suite Hacking Suite Hacking Suite Hacking Suite System Shield > --- WEAPON ----------- Heavy Ion Cannon Scythe > --- INVENTORY -------- Nuclear Pulse Thruster Structural Scanner Triangulator Advanced ECM Suite [Rating: 60] Favorites ----------- Power Light Ion Engine Engine Light Ion Engine Power Core Light Nuclear Core Reactor Cold Fusion Reactor Propulsion Improved Flight Unit Leg Aluminum Leg Wheel Wheel Hover Unit Hover Unit Flight Unit Improved Flight Unit Utility Hacking Suite Device Advanced Weight Redist. System Storage Small Storage Unit Processor Improved Signal Interpreter Hackware Hacking Suite Protection Propulsion Shielding Weapon Scythe Energy Gun Medium Laser Energy Cannon Heavy Ion Cannon Ballistic Gun Light Assault Rifle Launcher Rocket Launcher Slashing Weapon Scythe Build | -11 -10 -9 -9 -8 -7 -7 -7 -6 -5 ------- Run | Yrd Mat Mat Min Mat Fac Was Fac Fac Fac Slots Evolved 10 | . . 2 . 2 2 . . 2 2 Power 2 | . . . . . 1 . . 1 . Propulsion 2 | . . 1 . . . . . 1 . Utility 6 | . . 1 . 2 1 . . . 2 Weapon . | . . . . . . . . . . Parts Attached 74 | 2 5 18 1 15 4 2 10 11 6 Power 13 | . . 1 . 1 1 . 4 4 2 Engine 5 | . . 1 . 1 1 . 2 . . Core 7 | . . . . . . . 2 4 1 Reactor 1 | . . . . . . . . . 1 Propulsion 17 | . 2 8 . 2 . . 2 1 2 Treads . | . . . . . . . . . . Leg . | . . . . . . . . . . Wheel 3 | . . 3 . . . . . . . Hover 4 | . 2 2 . . . . . . . Flight 10 | . . 3 . 2 . . 2 1 2 Utility 20 | 1 . 4 1 4 1 . 3 4 2 Device 13 | 1 . 4 1 2 . . 2 2 1 Storage . | . . . . . . . . . . Processor 2 | . . . . . . . 1 1 . Hackware 4 | . . . . 1 1 . . 1 1 Protection 1 | . . . . 1 . . . . . Artifact . | . . . . . . . . . . Weapon 24 | 1 3 5 . 8 2 2 1 2 . Energy Gun . | . . . . . . . . . . Energy Cannon 4 | . . . . . 1 1 1 1 . Ballistic Gun 10 | 1 3 4 . 2 . . . . . Ballistic Cannon . | . . . . . . . . . . Launcher 5 | . . . . 3 . 1 . 1 . Special Weapon . | . . . . . . . . . . Impact Weapon . | . . . . . . . . . . Slashing Weapon 5 | . . 1 . 3 1 . . . . Piercing Weapon . | . . . . . . . . . . Special Melee Weapon . | . . . . . . . . . . Unidentified Prototypes 5 | . . 1 . 1 . 1 1 . 1 Parts Lost 15 | . . 6 . 1 . . 3 3 2 Power 5 | . . 1 . 1 . . 2 1 . Propulsion 6 | . . 4 . . . . . . 2 Utility 2 | . . . . . . . 1 1 . Weapon 2 | . . 1 . . . . . 1 . Highest Loss Streak 4 | . . 4 . 1 . . 1 2 2 To Critical Strikes . | . . . . . . . . . . Average Slot Usage (%) 93 | . 99 89 94 86 96 100 99 94 90 Engine 8 | . 14 9 11 8 14 15 5 3 . Core 3 | . . . . . . . 7 11 13 Leg 1 | . 11 . . . . . . . . Wheel 2 | . . 7 . . . . . . . Hover 4 | . 16 8 . . . . . . . Flight 18 | . . 10 33 26 23 23 22 25 23 Device 19 | . 14 20 22 23 23 23 22 14 13 Storage 5 | . 14 11 11 4 . . . . . Processor 1 | . . . . . . . 4 6 5 Hackware 8 | . . . . 9 15 15 15 17 22 Protection 1 | . . . . 4 7 7 2 . . Energy Cannon 2 | . . . . . 6 7 7 2 3 Ballistic Gun 8 | . 27 19 5 . . . . . . Slashing Weapon 5 | . . 2 11 8 4 7 7 6 5 Naked Turns . | . . . . . . . . . . Heaviest Build 26 | 12 12 16 15 18 18 18 24 26 26 Greatest Support 29 | 20 20 29 24 24 24 24 24 29 29 Greatest Overweight (x) 1 | . 1 1 . . . . . . . Average Overweight (x) . | . . . . . . . . . . Largest Inventory Capacity 8 | 8 8 8 8 8 5 5 5 5 5 Average Capacity 6 | 8 8 8 8 6 5 5 5 5 5 Most Carried 8 | 6 8 8 8 7 4 5 5 5 5 Average Carried 5 | 5 6 6 8 5 3 4 4 4 4 Final Capacity 8 | 8 8 8 8 5 5 5 5 5 5 Final Carried 8 | 5 8 8 8 4 4 5 4 5 5 Class Distribution -------------------- 53% | Mutant 35% | Hacker-Sprinter 6% | Hacker-Mutant 3% | Scavenger-Mutant Dominant Class ---------------- Mutant | -10/Materials Mutant | -9/Materials Mutant | -9/Mines Mutant | -8/Materials Hacker-Mutant | -7/Factory Hacker-Mutant | -7/Waste Hacker-Sprinter | -7/Factory Hacker-Sprinter | -6/Factory Hacker-Sprinter | -5/Factory Resources | -11 -10 -9 -9 -8 -7 -7 -7 -6 -5 ----------- Run | Yrd Mat Mat Min Mat Fac Was Fac Fac Fac Matter Collected 1372 | 289 150 431 25 82 30 158 91 91 25 Remotely . | . . . . . . . . . . Salvage Created 1950 | 152 179 641 . 85 30 . 589 249 25 Parts 144 | 10 14 60 . 17 5 . 24 12 2 Haulers Intercepted 6 | . 1 . . . . . 4 1 . Recyclers Shooed 1 | . 1 . . . . . . . . Parts Field Recycled . | . . . . . . . . . . Retrieved Matter . | . . . . . . . . . . Parts Self-Destructed . | . . . . . . . . . . Prevented . | . . . . . . . . . . Kills | -11 -10 -9 -9 -8 -7 -7 -7 -6 -5 ------- Run | Yrd Mat Mat Min Mat Fac Was Fac Fac Fac Combat Hostiles Destroyed 33 | . 5 18 . 7 . . 1 2 . Melee 2 | . . . . . . . 1 1 . Guns 23 | . 5 18 . . . . . . . Cannons 1 | . . . . . . . . 1 . AOE 7 | . . . . 7 . . . . . Classes Destroyed 12 | 2 4 2 . 1 1 . 1 1 . Worker 7 | . . . . 1 . . 3 3 . Builder 2 | . . . . . 1 . . 1 . Tunneler 3 | 3 . . . . . . . . . Hauler 6 | . 1 . . . . . 4 1 . Recycler 3 | 1 . . . . . . 2 . . Operator 2 | . . 1 . 1 . . . . . Drone 1 | . . . . . . . . 1 . Watcher 13 | . 2 3 . . . . 4 3 1 Swarmer 18 | . 3 8 . 7 . . . . . Grunt 7 | . 2 5 . . . . . . . Brawler 1 | . . . . . . . 1 . . Sentry 6 | . . 5 . . . . . 1 . Best Kill Streak 6 | 2 3 4 . 6 1 . 5 3 1 Combat Bots Only 4 | . 3 4 . 4 . . 1 1 . Max Kills in Single Turn 4 | 1 1 1 . 4 1 . 1 1 1 Gunslinging . | . . . . . . . . . . Exploded 3 | . . . . 3 . . . . . Melee 1 | . . . . . . . 1 1 . Uniques/NPCs Destroyed . | . . . . . . . . . . Combat | -11 -10 -9 -9 -8 -7 -7 -7 -6 -5 -------- Run | Yrd Mat Mat Min Mat Fac Was Fac Fac Fac Hostile Shots Fired 258 | . 21 69 1 31 . . 16 107 13 Missed 123 | . 10 19 1 11 . . 9 65 8 Damage Taken 1775 | . 102 562 . 217 . 21 194 586 93 Core 297 | . 12 61 . 58 . . . 148 18 Absorbed by Shields . | . . . . . . . . . . Redirected to Shielding 5 | . . . . 5 . . . . . Regen/Repaired (Parts) 347 | . 30 151 . 87 30 . . 49 . Core Remaining (%) 91 | 100 95 . 84 89 . . 100 82 . Volleys Fired 145 | 21 30 60 . 6 . . 12 16 . Largest 2 | 2 2 2 . 1 . . 1 1 . Hottest 75 | 70 40 43 . 33 . . 75 65 . Shots Fired 255 | 42 60 119 . 6 . . 12 16 . Gun 221 | 42 60 119 . . . . . . . Cannon 17 | . . . . . . . 12 5 . Launcher 17 | . . . . 6 . . . 11 . Special . | . . . . . . . . . . Kinetic 216 | 37 60 119 . . . . . . . Thermal 22 | 5 . . . . . . 12 5 . Explosive 17 | . . . . 6 . . . 11 . Electromagnetic . | . . . . . . . . . . Robot Hit Streak 19 | 4 6 19 . . . . . 10 . Robot Miss Streak 5 | 3 5 4 . 3 . . . 1 . Penetration Max . | . . . . . . . . . . Secondary Targets 1 | . . 1 . . . . . . . Max Gunslinging Chain 1 | . . 1 . . . . . . . Shots Hit Robots 191 | 24 26 80 . 2 1 . 26 29 3 Core Hits 89 | 8 13 31 . 8 1 . 14 13 1 Critical Kills 1 | . . 1 . . . . . . . Critical Parts Destroyed 1 | . 1 . . . . . . . . Critical Strikes 4 | . 1 1 . . . . 1 1 . Destroy 2 | . 1 1 . . . . . . . Sever 2 | . . . . . . . 1 1 . Melee Attacks 89 | . . 6 . 9 1 . 38 31 4 Impact . | . . . . . . . . . . Slashing 89 | . . 6 . 9 1 . 38 31 4 Piercing . | . . . . . . . . . . Sneak Attacks 19 | . . 1 . 1 1 . 10 6 . Combat Hostiles 1 | . . . . . . . . 1 . Follow-up Attacks . | . . . . . . . . . . Damage Inflicted 4824 | 251 311 1085 . 507 65 . 1260 1229 116 Guns 1521 | 251 309 961 . . . . . . . Cannons 83 | . . . . . . . . 83 . Explosions 700 | . . . . 382 . . . 318 . Melee 2518 | . . 124 . 125 65 . 1260 828 116 Ramming 2 | . 2 . . . . . . . . Kinetic 1483 | 213 309 961 . . . . . . . Thermal 121 | 38 . . . . . . . 83 . Explosive 700 | . . . . 382 . . . 318 . Electromagnetic . | . . . . . . . . . . Impact . | . . . . . . . . . . Slashing 2518 | . . 124 . 125 65 . 1260 828 116 Piercing . | . . . . . . . . . . Highest Corruption . | . . . . . . . . . . Average Corruption . | . . . . . . . . . . Corruption Purged . | . . . . . . . . . . Corruption Blocked . | . . . . . . . . . . Overload Shots . | . . . . . . . . . . Overflow Damage 314 | . . 13 . 23 . . 142 133 3 Projectiles . | . . . . . . . . . . Explosions 21 | . . . . 21 . . . . . Melee 293 | . . 13 . 2 . . 142 133 3 Knockbacks . | . . . . . . . . . . Impact . | . . . . . . . . . . Kinetic . | . . . . . . . . . . Secondary . | . . . . . . . . . . Self-Inflicted Damage 46 | . . . . 46 . . . . . Shots 2 | . . . . 2 . . . . . Rammed . | . . . . . . . . . . Targets Rammed 1 | . 1 . . . . . . . . Kicked 1 | . 1 . . . . . . . . Crushed . | . . . . . . . . . . Highest Temperature 208 | 52 14 25 . . . 15 208 90 9 Average Temperature 23 | 28 5 6 . . . 9 85 10 4 Received Heat Transfer 447 | . 24 219 . 9 . 27 27 96 45 Siege Activations . | . . . . . . . . . . Robots Corrupted . | . . . . . . . . . . Combat Hostiles . | . . . . . . . . . . Parts Fried . | . . . . . . . . . . Impact Corruptions . | . . . . . . . . . . Robots Melted . | . . . . . . . . . . Combat Hostiles . | . . . . . . . . . . Parts Melted . | . . . . . . . . . . Heat Transferred 222 | 111 . . . . . . . 111 . Parts Sabotaged . | . . . . . . . . . . Parts Stolen . | . . . . . . . . . . Parts Stripped . | . . . . . . . . . . Power Chain Reactions . | . . . . . . . . . . Alert | -11 -10 -9 -9 -8 -7 -7 -7 -6 -5 ------- Run | Yrd Mat Mat Min Mat Fac Was Fac Fac Fac Peak Influence 435 | 20 181 435 158 229 103 100 165 286 198 Initial 151 | . 13 68 151 61 82 36 . 12 53 Average 144 | 12 100 275 155 118 94 29 85 131 98 Maximum Alert Level 2 | . . 2 . 1 . . . 1 . Low Security (%) 75 | 100 100 19 100 89 100 100 100 78 100 Level 1 23 | . . 77 . 10 . . . 21 . Level 2 . | . . 2 . . . . . . . Level 3 . | . . . . . . . . . . Level 4 . | . . . . . . . . . . Level 5 . | . . . . . . . . . . High Security . | . . . . . . . . . . Max Security . | . . . . . . . . . . Squads Dispatched 13 | . 1 2 . . . . 6 4 . Investigation 5 | . . 2 . . . . 1 2 . Extermination 2 | . . . . . . . 2 . . Reinforcement 3 | . 1 . . . . . . 2 . Assault . | . . . . . . . . . . Garrison 3 | . . . . . . . 3 . . Intercept . | . . . . . . . . . . Searches Triggered . | . . . . . . . . . . Construction Impeded 1 | . . . . . . . . 1 . Haulers Reinforced . | . . . . . . . . . . Active Scanning Responses . | . . . . . . . . . . Cargo Convoy Interrupts . | . . . . . . . . . . Stealth | -11 -10 -9 -9 -8 -7 -7 -7 -6 -5 --------- Run | Yrd Mat Mat Min Mat Fac Was Fac Fac Fac Distress Signals 10 | . 1 2 . 2 . . . 2 3 Communications Jammed . | . . . . . . . . . . Distress Signals . | . . . . . . . . . . Times Spotted 140 | . 11 28 4 21 . 7 16 22 31 Peak Tracking Total 8 | . 5 5 4 6 . 4 5 6 8 Tactical Retreats 27 | . 2 2 2 4 . 1 6 5 5 Traps | -11 -10 -9 -9 -8 -7 -7 -7 -6 -5 ------- Run | Yrd Mat Mat Min Mat Fac Was Fac Fac Fac Traps Triggered 8 | . . . . . 2 . 4 1 1 Indirectly . | . . . . . . . . . . Trap Hack Attempts . | . . . . . . . . . . Triggered . | . . . . . . . . . . Disarmed . | . . . . . . . . . . Reprogrammed . | . . . . . . . . . . Reused . | . . . . . . . . . . Traps Extracted . | . . . . . . . . . . Installed . | . . . . . . . . . . Triggered . | . . . . . . . . . . Machines | -11 -10 -9 -9 -8 -7 -7 -7 -6 -5 ---------- Run | Yrd Mat Mat Min Mat Fac Was Fac Fac Fac Machines Disabled 2 | . . 1 . . . . 1 . . Max in Single Turn 1 | . . 1 . . . . . . . Garrison Access 2 | . . . . . . . 2 . . Machines Repaired . | . . . . . . . . . . Machines Dismantled . | . . . . . . . . . . Machines Sabotaged . | . . . . . . . . . . Overloaded Fab Kills . | . . . . . . . . . . Hacking | -11 -10 -9 -9 -8 -7 -7 -7 -6 -5 --------- Run | Yrd Mat Mat Min Mat Fac Was Fac Fac Fac Machines Accessed 51 | . 4 7 1 7 1 . 16 9 6 Terminals 27 | . 3 5 1 5 . . 5 4 4 Fabricators 5 | . . . . . . . 3 1 1 Repair Stations 6 | . 1 1 . 1 1 . 1 1 . Recycling Units 5 | . . . . . . . 2 3 . Scanalyzers 4 | . . 1 . 1 . . 2 . . Garrison Access 4 | . . . . . . . 3 . 1 Total Hacks 146 | . 14 21 3 21 2 . 42 19 24 Successful 89 | . 5 15 2 17 2 . 23 10 15 Failed 57 | . 9 6 1 4 . . 19 9 9 Catastrophic 4 | . . 1 . . . . 1 2 . Database Lockouts . | . . . . . . . . . . Manual 70 | . 12 9 3 6 . . 12 7 21 Terminals 81 | . 12 14 3 8 . . 14 9 21 Fabricators 12 | . . . . . . . 8 3 1 Repair Stations 19 | . 2 4 . 7 2 . 1 3 . Recycling Units 9 | . . . . . . . 5 4 . Scanalyzers 18 | . . 3 . 6 . . 9 . . Garrison Access 7 | . . . . . . . 5 . 2 Terminal Hacks 22 | . 2 3 2 3 . . 3 . 9 Part Schematic 4 | . . . 2 2 . . . . . Robot Analysis 1 | . 1 . . . . . . . . Prototype ID Bank 1 | . . . . . . . . . 1 Level Access Points 1 | . . . . . . . . . 1 Branch Access Points 2 | . . . . . . . 1 . 1 Emergency Access Points 2 | . . 1 . . . . . . 1 Terminal Index 4 | . 1 1 . . . . 1 . 1 Repair Station Index 1 | . . . . . . . . . 1 Recycling Unit Index 1 | . . . . . . . . . 1 Scanalyzer Index 1 | . . . . . . . . . 1 Garrison Index 1 | . . . . . . . . . 1 Alert Level 1 | . . . . . . . 1 . . Locate Traps 1 | . . 1 . . . . . . . Registered Components 1 | . . . . 1 . . . . . Fabricator Hacks 6 | . . . . . . . 3 2 1 Network Status 2 | . . . . . . . 1 . 1 Load Schematic 2 | . . . . . . . 1 1 . Build 2 | . . . . . . . 1 1 . Repair Station Hacks 17 | . 2 4 . 6 2 . . 3 . Scan Component 9 | . 1 2 . 3 1 . . 2 . Repair 8 | . 1 2 . 3 1 . . 1 . Recycling Unit Hacks 4 | . . . . . . . 2 2 . Report Inventory 4 | . . . . . . . 2 2 . Scanalyzer 18 | . . 3 . 6 . . 9 . . Insert Component 7 | . . 1 . 2 . . 4 . . Analyze 11 | . . 2 . 4 . . 5 . . Garrison Access Hacks 2 | . . . . . . . 2 . . Seal Access 2 | . . . . . . . 2 . . Unauthorized Hacks 20 | . 1 5 . 2 . . 4 3 5 Terminals 18 | . 1 5 . 2 . . 3 2 5 Track 1 | . . 1 . . . . . . . Assimilate 3 | . . . . 1 . . . 1 1 Botnet 8 | . . 3 . . . . 2 . 3 Operators 6 | . 1 1 . 1 . . 1 1 1 Fabricators . | . . . . . . . . . . Repair Stations . | . . . . . . . . . . Recycling Units 1 | . . . . . . . . 1 . Recyclers 1 | . . . . . . . . 1 . Scanalyzers . | . . . . . . . . . . Garrison Access 1 | . . . . . . . 1 . . Watchers 1 | . . . . . . . 1 . . Data Cores Recovered . | . . . . . . . . . . Used . | . . . . . . . . . . Hacking Detections 43 | . 4 6 1 6 1 . 13 8 4 Full Trace Events 6 | . . 3 . . . . 1 2 . Feedback Events . | . . . . . . . . . . Feedback Blocked . | . . . . . . . . . . Robot Schematics Acquired . | . . . . . . . . . . Robots Built . | . . . . . . . . . . Authchips . | . . . . . . . . . . Time . | . . . . . . . . . . Total Robot Build Rating . | . . . . . . . . . . Part Schematics Acquired 11 | . . 1 2 4 . . 4 . . Parts Built 3 | . . . . . . . 1 2 . Authchips . | . . . . . . . . . . Time 218 | . . . . . . . 134 84 . Total Part Build Rating 12 | . . . . . . . 4 8 . Parts Repaired 8 | . 1 2 . 3 1 . . 1 . Time 281 | . 26 58 . 109 38 . . 50 . Parts Recycled . | . . . . . . . . . . Recycled Matter . | . . . . . . . . . . Retrieved Matter . | . . . . . . . . . . Retrieved Components . | . . . . . . . . . . Parts Scanalyzed 7 | . . 1 . 2 . . 4 . . Part Schematics Acquired 7 | . . 1 . 2 . . 4 . . Parts Damaged 1 | . . 1 . . . . . . . Bothacking | -11 -10 -9 -9 -8 -7 -7 -7 -6 -5 ------------ Run | Yrd Mat Mat Min Mat Fac Was Fac Fac Fac Used RIF Installer . | . . . . . . . . . . Robots Hacked . | . . . . . . . . . . Non-combat . | . . . . . . . . . . Combat . | . . . . . . . . . . Robot Hacks Applied . | . . . . . . . . . . Relay Couplers Released . | . . . . . . . . . . Fabnet Peak Effective % . | . . . . . . . . . . Robots Rewired . | . . . . . . . . . . Allies Hacked . | . . . . . . . . . . Hacks Repelled . | . . . . . . . . . . Allies | -11 -10 -9 -9 -8 -7 -7 -7 -6 -5 -------- Run | Yrd Mat Mat Min Mat Fac Was Fac Fac Fac Total Allies 24 | . . . . . . 19 3 1 1 Largest Group 19 | . . . . . . 19 3 1 1 Highest-Rated Group 465 | . . . . . . 465 93 26 26 Highest-Rated Ally 35 | . . . . . . 35 31 26 26 Total Orders 1 | . . . . . . . . 1 . STAY 1 | . . . . . . . . 1 . Ally Attacks 158 | . . . . . . 124 34 . . Total Damage 4996 | . . . . . . 4417 579 . . Kills 16 | . . . . . . 13 3 . . Allies Corrupted 1 | . . . . . . . 1 . . Allies Melted . | . . . . . . . . . . Intel | -11 -10 -9 -9 -8 -7 -7 -7 -6 -5 ------- Run | Yrd Mat Mat Min Mat Fac Was Fac Fac Fac Robot Analysis Total 1 | . 1 . . . . . . . . Derelict Logs Recovered 1 | . . . 1 . . . . . . Drone Launches . | . . . . . . . . . . Drone Recoveries . | . . . . . . . . . . Exploration | -11 -10 -9 -9 -8 -7 -7 -7 -6 -5 ------------- Run | Yrd Mat Mat Min Mat Fac Was Fac Fac Fac Turns Passed 4577 | 129 531 1162 149 638 128 202 881 554 203 Spaces Moved 6642 | 31 414 712 314 544 208 463 2147 1229 580 Core . | . . . . . . . . . . Treads . | . . . . . . . . . . Legs 147 | 31 116 . . . . . . . . Wheels 293 | . . 293 . . . . . . . Hover 446 | . 298 148 . . . . . . . Flight 5756 | . . 271 314 544 208 463 2147 1229 580 Fastest Speed 28 | 120 56 34 34 34 34 34 32 28 28 Average Speed 38 | 120 74 65 34 34 34 34 32 28 28 Slowest Speed 125 | 120 120 125 34 37 34 34 34 32 28 Overloaded Moves . | . . . . . . . . . . Propulsion Burnouts . | . . . . . . . . . . Robots Hopped 38 | . . . 4 3 . . 11 16 4 Cave-ins Triggered . | . . . . . . . . . . Exploration Rate (%) 41 | 4 47 56 53 46 7 94 50 33 20 Regions Visited 9 Branch Regions 1 Pre-discovered Areas . | . . . . . . . . . . Known Exits Taken 2 | . . . . . . . 1 1 . Unknown Exits Taken 5 | 1 1 1 1 1 . . . . . Scrap Searched 1 | . . . 1 . . . . . . Spaces Dug 54 | . . 1 . 31 . . 11 10 1 Terrain Destroyed 99 | . . 1 . 57 . . 11 29 1 Melee 21 | . . 1 . 3 . . 8 8 1 Projectile 5 | . . . . . . . 3 2 . AOE 73 | . . . . 54 . . . 19 . Terrain Rammed . | . . . . . . . . . . Walls Destroyed . | . . . . . . . . . . Machines Disabled . | . . . . . . . . . . Actions | -11 -10 -9 -9 -8 -7 -7 -7 -6 -5 --------- Run | Yrd Mat Mat Min Mat Fac Was Fac Fac Fac Total 8271 | 84 583 1282 352 977 262 506 2262 1354 609 Wait 1259 | 30 127 470 39 390 33 39 52 77 2 Move 6562 | 30 413 711 306 537 208 462 2125 1198 572 Hop 34 | . . . 3 3 . . 10 14 4 Pick Up 25 | . 3 7 1 4 1 1 4 3 1 Fast Attach 35 | 1 4 10 . 4 3 2 5 4 2 Attach 26 | . . 6 . 11 1 . 2 4 2 Detach 14 | . . 3 . 7 . . 1 2 1 Swap 13 | 1 1 2 1 . . . 3 3 2 Drop 35 | 1 4 7 2 6 . 2 10 2 1 Fire 145 | 21 30 60 . 6 . . 12 16 . Melee 89 | . . 6 . 9 1 . 38 31 4 Ram . | . . . . . . . . . . Kick 1 | . 1 . . . . . . . . Crush . | . . . . . . . . . . Escape Stasis 33 | . . . . . 15 . . . 18 Rewire . | . . . . . . . . . . Trap . | . . . . . . . . . . Miscellaneous . | . . . . . . . . . . Route ------- -11/Scrapyard -10/Materials (discovered 2 exits: *Mat / [*Min]) -9/Materials (discovered 5 exits: *Mat x2 / *Min / [*Sto x2]) -9/Mines -8/Materials -7/Factory -7/Waste -7/Factory (discovered 5 exits: *Fac x3 / Low x2) -6/Factory -5/Factory (discovered 6 exits: Fac x4 / Upp x2) History --------- Turn | Location | Event 1 | -11/Scrapyard | Discovered new exit (range 3) 130 | -11/Scrapyard | Entered Materials 304 | -10/Materials | Build established: Mutant 394 | -10/Materials | Discovered new exit (range 16) 459 | -10/Materials | Discovered new exit (range 15) 656 | -10/Materials | Repaired Lgt. Assault Rifle 661 | -10/Materials | Entered another Materials area 661 | -9/Materials | Evolved 2 slots: Propulsion x1, Utility x1 1227 | -9/Materials | Lost 4 parts (3n1w) 1293 | -9/Materials | Discovered new exit (range 10) 1297 | -9/Materials | Discovered new exit (range 14) 1491 | -9/Materials | Repaired Hvy. Assault Rifle 1518 | -9/Materials | Repaired Lgt. Assault Rifle 1543 | -9/Materials | Discovered new exit (range 5) 1626 | -9/Materials | Discovered new exit (range 10) 1821 | -9/Materials | Discovered new exit (range 7) 1823 | -9/Materials | Entered Mines 1842 | -9/Mines | Learned Materials terminal intel 1921 | -9/Mines | Received a Rocket Launcher from a helpful Derelict 1932 | -9/Mines | Discovered new exit (range 4) 1972 | -9/Mines | Entered Materials 1972 | -8/Materials | Evolved 2 slots: Utility x2 1973 | -8/Materials | Loaded intel: 12 terminal locations 2419 | -8/Materials | Discovered new exit (range 13) 2485 | -8/Materials | Repaired Rocket Launcher 2537 | -8/Materials | Repaired Imp. Flight Unit 2565 | -8/Materials | Repaired Sensor Array 2610 | -8/Materials | Entered Factory 2610 | -7/Factory | Evolved 2 slots: Power x1, Utility x1 2682 | -7/Factory | Noticed a derelict Sapper rigging charges 2721 | -7/Factory | Repaired Scythe 2738 | -7/Factory | Sucked down chute 2738 | -7/Factory | Entered Waste 2741 | -7/Waste | Spotted C-40 Crusher 2767 | -7/Waste | Spotted C-40 Crusher 2781 | -7/Waste | Warlord forces began an assault 2785 | -7/Waste | Spotted C-40 Crusher 2792 | -7/Waste | Spotted C-40 Crusher 2793 | -7/Waste | Allies destroyed C-40 Crusher 2798 | -7/Waste | Spotted C-40 Crusher 2798 | -7/Waste | Spotted C-40 Crusher 2813 | -7/Waste | Allies destroyed C-40 Crusher 2819 | -7/Waste | Allies destroyed C-40 Crusher 2840 | -7/Waste | Discovered new exit (range 10) 2877 | -7/Waste | Lost 14 allies 2914 | -7/Waste | Build established: Hacker-Mutant 2940 | -7/Waste | Entered Factory 2948 | -7/Factory | Lost 3 allies 3147 | -7/Factory | Allied Derelicts emerged from ambush trap array 3205 | -7/Factory | Garrison activated, responded to threat 3242 | -7/Factory | Build established: Hacker-Sprinter 3261 | -7/Factory | Fabricated Cld. VTOL Module? 3365 | -7/Factory | Identified exit to Lower Caves 3563 | -7/Factory | Discovered new exit (range 11) 3700 | -7/Factory | Discovered new exit (range 8) 3702 | -7/Factory | Identified exit to Factory 3809 | -7/Factory | Discovered exit to Factory (range 15) 3821 | -7/Factory | Entered another Factory area 3821 | -6/Factory | Evolved 2 slots: Power x1, Propulsion x1 4004 | -6/Factory | Fabricated Mic. Nuclear Core? 4261 | -6/Factory | Repaired Lgt. Fission Core? 4371 | -6/Factory | Discovered new exit (range 16) 4375 | -6/Factory | Identified exit to Factory 4375 | -6/Factory | Entered another Factory area 4375 | -5/Factory | Evolved 2 slots: Utility x2 4513 | -5/Factory | Identified exit to Upper Caves 4513 | -5/Factory | Identified exit to Factory 4578 | -5/Factory | Self-destructed Last Messages --------------- Map updated. >>Index(Scanalyzers) Found 4 scanalyzers. Downloaded coordinate data. >>Index(Repair Stations) Found 6 repair stations. Downloaded coordinate data. >>Index(Recycling Units) Found 6 recycling units. Downloaded coordinate data. 04530_ K-01 Serf cleans the Terminal. 04556_ Connecting with Garrison Access... 04560_ Destroyed Imp. Hover Unit. 04568_ W-25 Informer destroyed. 04569_ K-01 Serf collects debris. 04570_ K-01 Serf cleans the Subcomponent Replicator. 04571_ Acquired 25 matter. 04574_ K-01 Serf collects debris. 04578_ Imp. Flight Unit destroyed. 04578_ Cld. VTOL Module destroyed. Map ----- +----------------------------------------------------+ | ????????????????????#??????# #????????? | | ????????????????????# ?"???+ +????????? | | ????????????????????# ""???# #????????? | | ????????????????????# ""??# #????????? | | ????????????????????# ""??# ###+####????????? | | ????????????????????# ?# # [#?????????? | | ????????????????????# """ ?# # " #?????????? | | ????????????????????# """ # ! # "" ########### | | ????????????????????# """ # = # G ]# ! | | ????????????????????# "" + # "" # """"" | | ????????????????????# "" # # " " """"" | | ????????????????????# # # # """"" | | ????????????????????######## # # """"" | | ????????????????????# # """ # | | ????????????????????# # """ #####+##### | | ????????????????????# # """ #??# | | ????????????????????+ ^""" k # #??# ##+# | | ????????????????????# """ uR #######??# ## | | ????????????????????# """ #??##????# ## | | ????????????????????# ##T ###### ## | | ????????????????????# """"" # | | ????????????????????# """"" # | | ????????????????????# """ + | | ????????????????????# # | | ????????????????????# # | | ????????????????????# @######### # | | ????????????????????# #???????? ### | | ????????????????????# #????????? ?? | | ????????????????????# #????????? ?? | | ????????????????????# #?????????? ??? | | ????????????????????+ ;??????????? ?? ??? | | ????????????????????# #??????????????????????? | | ????????????????????# #??????????????????????? | | ????????????????????# #??????????????????????? | | ???????????????????? ???????????????????????? | | ??????????????????? ???????????????????????? | | ???????????????????"" gg g???????????????????????? | | ???????????????????"" ]g ???????????????????????? | | ????????????????????" ???????????????????????? | | ????????????????????? g ???????????????????????? | | ??????????????????????? ???????????????????????? | | ?????????????????????????????????????????????????? | | ?????????????????????????????????????????????????? | | ?????????????????????????????????????????????????? | | ?????????????????????????????????????????????????? | | ?????????????????????????????????????????????????? | | ?????????????????????????????????????????????????? | | ?????????????????????????????????????????????????? | | ?????????????????????????????????????????????????? | | ?????????????????????????????????????????????????? | +----------------------------------------------------+ Best States ------------- Heat Dissipation 40 Energy Generation 38 Energy Capacity 260 Matter Stores 300 Matter Capacity 300 Sight Range 16 Robot Scan Range 15 Terrain Scan Density 10 ECM Strength 2 Additional Mass Support 9 Propulsion Shielding 33 Evasion (%) 64 Offensive Hacking 30 Defensive Hacking 10 Item Schematics ----------------- Adv. Weight Redist. System | -9/Materials | Scanalyzed ECM Suite | -9/Mines | Hacked Mni. Grenade Launcher | -9/Mines | Hacked System Shield | -8/Materials | Hacked Hacking Suite | -8/Materials | Hacked Imp. Flight Unit | -8/Materials | Scanalyzed Scythe | -8/Materials | Scanalyzed Cld. VTOL Module | -7/Factory | Scanalyzed Adv. ECM Suite | -7/Factory | Scanalyzed Mic. Nuclear Core | -7/Factory | Scanalyzed Rocket Launcher | -7/Factory | Scanalyzed Robot Schematics ------------------ None Fabricated ------------ Cld. VTOL Module | x1 | -7/Factory Mic. Nuclear Core | x2 | -6/Factory Alien Tech Used ----------------- None Achievements -------------- None Challenges ------------ None Game ------ Seed LightWeightSegregator Manual? 0 Play Time 01:17:07 Cumulative 96.7 hours Start 2024.05.11 @ 21:34:38 End 2024.05.12 @ 00:18:13 Sessions 1 Manual Loads 0 Difficulty Rogue Special Mode None Game No. 64 Rogue 64 Adventurer 0 Explorer 0 Win Type - Total 1 Types 1/0/0/0/0/0/0/0/0 Lore% 57 Gallery% 48 Achievement% 44 Wizard Run 0 Options --------- Layout 0 ASCII 0 Keyboard 0 Movement Mouse Keybinds 0 Fullscreen 1 Font 18/SmallcapsGlow Map View 76x50 Zoom Use 0% Tactical HUD 1 Map Filters NONE Filters NONE Steam 1 RUN: dfa3851f-ab28-494f-9508-63cbaf6545ba